Cogmind - Beta 16 @@@ ROGUE MODE // 2025.11.23 @ 18:30:32 Player: ClassActJerk Result: Destroyed by Y-54 Guardian with Gatling Laser Performance ------------- Evolutions (3) 1500 Regions Visited (5) 1000 Robots Destroyed (52) 260 Value Destroyed (1496) 1496 Prototype IDs (1) 20 Alien Tech Used (0) 0 Bonus (-153) -153 TOTAL SCORE: 4123 Bonus ------- High Alert Combat Kills 13 Friendly Fire -166 Cogmind --------- Core Integrity 0/700 Matter 2/300 Energy 99/100 System Corruption 10% Temperature Cool (6) Movement Core (50) Location -7/Factory Parts ------- > --- POWER (1) -------- (None) > --- PROPULSION (4) --- (None) > --- UTILITY (5) ------ (None) > --- WEAPON (3) ------- (None) > --- INVENTORY (5) ---- Light Deuterium Engine High-capacity Matter Pod (0) Heavy Assault Rifle Faulty Enhanced Autogun Mining Laser Peak State ------------ > --- POWER ------------ Light Ion Engine > --- PROPULSION ------- VTOL Module VTOL Module VTOL Module VTOL Module > --- UTILITY ---------- Medium Storage Unit Improved Propulsion Shielding Light Armor Plating Hardened Medium Armor Plating Recalibrator > --- WEAPON ----------- Assault Cannon Heavy Rocket Launcher Heavy Rocket Launcher > --- INVENTORY -------- Light Deuterium Engine Recalibrator Heavy Assault Rifle Enhanced Autogun Enhanced Autogun Heavy Rocket Launcher Heavy Rocket Launcher Mining Laser [Rating: 34] Favorites ----------- Power Light Ion Engine Engine Light Ion Engine Propulsion Light Treads Treads Light Treads Leg Aluminum Leg Hover Unit Gravmag System Flight Unit VTOL Module Utility Small Storage Unit Device Recalibrator Storage Small Storage Unit Protection Hardened Light Armor Plating Weapon Heavy Rocket Launcher Energy Gun Small Laser Ballistic Gun Light Assault Rifle Ballistic Cannon Assault Cannon Launcher Heavy Rocket Launcher Build | -11 -10 -9 -9 -8 -7 ------- Run | Yrd Mat Mat Min Mat Fac Slots Evolved 6 | . . 2 . 2 2 Power . | . . . . . . Propulsion 2 | . . 2 . . . Utility 3 | . . . . 1 2 Weapon 1 | . . . . 1 . Parts Attached 47 | 4 7 2 10 15 9 Power 5 | 1 . 1 1 2 . Engine 5 | 1 . 1 1 2 . Core . | . . . . . . Reactor . | . . . . . . Propulsion 15 | 1 1 1 3 6 3 Treads 5 | 1 1 1 2 . . Leg 2 | . . . 1 1 . Wheel . | . . . . . . Hover 3 | . . . . . 3 Flight 5 | . . . . 5 . Utility 12 | 1 1 . 2 4 4 Device 3 | . . . . 1 2 Storage 3 | 1 . . 1 1 . Processor . | . . . . . . Hackware . | . . . . . . Protection 6 | . 1 . 1 2 2 Artifact . | . . . . . . Weapon 15 | 1 5 . 4 3 2 Energy Gun 3 | . 2 . 1 . . Energy Cannon . | . . . . . . Ballistic Gun 3 | 1 1 . 1 . . Ballistic Cannon 2 | . . . 1 1 . Launcher 7 | . 2 . 1 2 2 Special Weapon . | . . . . . . Impact Weapon . | . . . . . . Slashing Weapon . | . . . . . . Piercing Weapon . | . . . . . . Special Melee Weapon . | . . . . . . Unidentified Prototypes 1 | . . . 1 . . Parts Lost 29 | . . 1 10 3 15 Power 4 | . . . 2 1 1 Propulsion 9 | . . 1 3 . 5 Utility 7 | . . . 2 1 4 Weapon 9 | . . . 3 1 5 Highest Loss Streak 6 | . . 1 4 3 6 To Critical Strikes . | . . . . . . Average Backups 5 | 2 5 5 3 2 6 Power 1 | 1 1 2 . . 1 Propulsion . | . . . . . . Utility 1 | . 1 2 1 . . Weapon 2 | . 1 1 1 1 4 Tool/Special . | . . . . . . Unused Backups 8 | 1 . 1 . . 6 Power 2 | . . 1 . . 1 Propulsion 1 | 1 . . . . . Utility 1 | . . . . . 1 Weapon 4 | . . . . . 4 Tool/Special . | . . . . . . Average Slot Usage (%) 77 | . 96 86 59 76 64 Engine 8 | . 14 11 8 1 5 Treads 12 | . 27 31 10 . . Flight 7 | . . . . 30 8 Device 3 | . . . . . 10 Storage 10 | . 14 11 12 13 6 Protection 11 | . 13 11 5 11 13 Energy Gun 3 | . 12 . 1 . . Ballistic Gun 3 | . 13 . . . . Ballistic Cannon 3 | . . . 2 4 6 Launcher 9 | . . 22 15 12 11 Peak Build Rating 34 | 4 8 10 11 28 34 Average Rating 14 | 3 7 9 7 18 23 On Entrance 8 | . 4 8 9 3 28 Avg Prop Armor Cover (%) . | . . . . . . Naked Turns 125 | . . . . . 125 Heaviest Build 46 | 9 19 19 20 37 46 Greatest Support 80 | 20 40 60 80 27 27 Greatest Overweight (x) 15 | . . . 6 2 15 Average Overweight (x) 1 | . . . . . 3 Largest Inventory Capacity 10 | 8 8 8 8 10 10 Average Capacity 8 | 7 8 8 7 9 9 Most Carried 10 | 5 7 8 7 10 10 Average Carried 5 | 2 5 5 3 3 6 Final Capacity 10 | 8 8 8 5 10 5 Final Carried 10 | 4 5 8 2 10 5 Class Distribution -------------------- 66% | Mutant 28% | Bomber 5% | Sprinter Dominant Class ---------------- Mutant | -10/Materials Mutant | -9/Materials Mutant | -9/Mines Bomber | -8/Materials Bomber | -7/Factory Resources | -11 -10 -9 -9 -8 -7 ----------- Run | Yrd Mat Mat Min Mat Fac Matter Collected 1282 | 140 183 165 137 639 18 Remotely . | . . . . . . Salvage Created 1005 | . 246 157 219 147 236 Parts 94 | . 15 13 20 21 25 Haulers Intercepted 3 | . . 1 . 1 1 Recyclers Shooed 1 | 1 . . . . . Parts Field Recycled . | . . . . . . Retrieved Matter . | . . . . . . Parts Self-Destructed . | . . . . . . Prevented . | . . . . . . Parts Restored . | . . . . . . Kills | -11 -10 -9 -9 -8 -7 ------- Run | Yrd Mat Mat Min Mat Fac Combat Hostiles Destroyed 37 | . 8 5 15 6 3 Guns 6 | . 6 . . . . Cannons 1 | . . . 1 . . AOE 30 | . 2 5 14 6 3 Classes Destroyed 15 | . 2 3 5 3 2 Worker 1 | . . . 1 . . Builder 9 | . . . 2 1 6 Tunneler 3 | . . . 1 2 . Hauler 3 | . . 1 . 1 1 Recycler 2 | . . 1 . . 1 Operator 1 | . . . . 1 . Watcher 1 | . . . . . 1 Swarmer 10 | . 3 3 4 . . Grunt 11 | . 5 . 3 3 . Brawler 1 | . . . . 1 . Duelist 1 | . . . . 1 . Sentry 4 | . . 2 . 1 1 Demolisher 2 | . . . 2 . . Hunter 2 | . . . . . 2 Assembled 6 | . . . 6 . . Thug 1 | . . . 1 . . Best Kill Streak 7 | . 6 3 6 4 7 Combat Bots Only 6 | . 6 3 6 3 1 Max Kills in Single Turn 5 | . 1 2 4 3 5 Gunslinging . | . . . . . . Exploded 3 | . 1 2 3 3 1 Melee . | . . . . . . Uniques/NPCs Destroyed . | . . . . . . Combat | -11 -10 -9 -9 -8 -7 -------- Run | Yrd Mat Mat Min Mat Fac Hostile Shots Fired 383 | . 34 31 63 28 227 Missed 134 | . 8 11 19 8 88 Hits 249 | . 26 20 44 20 139 Projectile 249 | . 26 20 44 20 139 AOE 12 | . . . 11 . 1 Critical Strikes 11 | . . 2 1 2 6 Damage Taken 4148 | . 260 535 910 402 2041 Core 972 | . 12 29 155 69 707 Absorbed by Shields . | . . . . . . Redirected to Shielding 101 | . . . . 86 15 Core Remaining (%) 84 | 100 95 . 54 87 . Volleys Fired 80 | 6 21 8 21 13 11 Largest 3 | 1 2 2 2 3 3 Hottest 115 | 20 70 60 70 115 115 Shots Fired 147 | 6 42 16 33 26 24 Gun 44 | 6 38 . . . . Cannon 25 | . . . 5 9 11 Launcher 78 | . 4 16 28 17 13 Special . | . . . . . . Kinetic 50 | 6 19 . 5 9 11 Thermal 19 | . 19 . . . . Explosive 78 | . 4 16 28 17 13 Electromagnetic . | . . . . . . Robot Hit Streak 8 | 3 6 7 8 6 7 Robot Miss Streak 4 | 2 4 1 4 2 3 Penetration Max . | . . . . . . Secondary Targets . | . . . . . . Shots Hit Robots 75 | 4 21 10 15 15 10 Core Hits 105 | 1 19 12 38 20 15 Critical Kills . | . . . . . . Critical Parts Destroyed . | . . . . . . Critical Strikes . | . . . . . . Melee Attacks . | . . . . . . Impact . | . . . . . . Slashing . | . . . . . . Piercing . | . . . . . . Sneak Attacks . | . . . . . . Combat Hostiles . | . . . . . . Follow-up Attacks . | . . . . . . Damage Inflicted 4548 | 29 317 434 1481 1221 1066 Guns 212 | 29 183 . . . . Cannons 316 | . . . 84 144 88 Explosions 4017 | . 134 434 1394 1077 978 Melee . | . . . . . . Ramming 3 | . . . 3 . . Kinetic 421 | 29 76 . 84 144 88 Thermal 351 | . 107 . . 244 . Explosive 3773 | . 134 434 1394 833 978 Electromagnetic . | . . . . . . Impact . | . . . . . . Slashing . | . . . . . . Piercing . | . . . . . . Highest Corruption 10 | . . . . . 10 Average Corruption 7 | . . . . . 7 Corruption Purged . | . . . . . . Corruption Blocked . | . . . . . . Effects 7 | . . . . . 7 Message Errors 1 | . . . . . 1 Matter Fused 1 | . . . . . 1 Energy Discharges 1 | . . . . . 1 Parts Rejected 1 | . . . . . 1 Data Loss (major) 2 | . . . . . 2 Misdirections 1 | . . . . . 1 Overload Shots . | . . . . . . Overflow Damage 206 | . . . 23 48 135 Projectiles . | . . . . . . Explosions 206 | . . . 23 48 135 Melee . | . . . . . . Knockbacks . | . . . . . . Impact . | . . . . . . Kinetic . | . . . . . . Secondary . | . . . . . . Self-Inflicted Damage 611 | . . 52 160 113 286 Shots 18 | . . 3 6 3 6 Rammed 1 | . . . 1 . . Targets Rammed 1 | . . . 1 . . Kicked . | . . . . . . Crushed . | . . . . . . Highest Temperature 398 | . 398 39 360 84 126 Average Temperature 103 | . 172 14 102 30 59 Received Heat Transfer 621 | . 99 90 36 207 189 Effects 1 | . 1 . . . . Short Circuit 1 | . 1 . . . . Siege Activations . | . . . . . . Martial Activations . | . . . . . . Shielding Activations . | . . . . . . Robots Disrupted . | . . . . . . Combat Hostiles . | . . . . . . Robots Corrupted . | . . . . . . Combat Hostiles . | . . . . . . Parts Fried . | . . . . . . Impact Corruptions . | . . . . . . Robots Melted . | . . . . . . Combat Hostiles . | . . . . . . Parts Melted . | . . . . . . Heat Transferred 447 | . 297 . . 150 . Parts Sabotaged . | . . . . . . Parts Stolen . | . . . . . . Parts Stripped . | . . . . . . Power Chain Reactions . | . . . . . . Alert | -11 -10 -9 -9 -8 -7 ------- Run | Yrd Mat Mat Min Mat Fac Maximum Alert Level 2 | . . . . 1 2 Low Security (%) 69 | 100 100 100 100 75 18 Level 1 21 | . . . . 24 53 Level 2 9 | . . . . . 28 Level 3 . | . . . . . . Level 4 . | . . . . . . Level 5 . | . . . . . . High Security . | . . . . . . Max Security . | . . . . . . Peak Influence 462 | . 120 110 191 270 462 Initial 111 | . . 24 39 44 111 Average 140 | . 18 45 128 93 308 Influence Increases 1917 | . 215 200 374 418 710 Destroy 0b10 Robot/C 620 | . 160 100 180 120 60 Destroy 0b10 Robot/NC 100 | . . 10 20 25 45 Destroy Leader 158 | . 40 22 30 32 34 Disable Machine 495 | . . . 15 105 375 Destroy Structure 484 | . 15 53 114 136 166 Lose Combat Pursuer 60 | . . 15 15 . 30 Influence Decreases 1720 | . 156 159 359 287 759 Entered New Map 302 | . . 35 61 71 135 Time Decay 1128 | . 156 114 198 186 474 Lost Part 290 | . . 10 100 30 150 Squads Dispatched 12 | . 2 . . 7 3 Investigation . | . . . . . . Extermination 2 | . . . . . 2 Reinforcement 7 | . 2 . . 4 1 Assault . | . . . . . . Garrison 3 | . . . . 3 . Intercept . | . . . . . . Searches Triggered . | . . . . . . Construction Impeded 1 | . . . . . 1 Haulers Reinforced . | . . . . . . Active Scanning Responses . | . . . . . . Cargo Convoy Interrupts . | . . . . . . Stealth | -11 -10 -9 -9 -8 -7 --------- Run | Yrd Mat Mat Min Mat Fac Distress Signals 5 | . 2 1 . 1 1 Communications Jammed . | . . . . . . Distress Signals . | . . . . . . Times Spotted 54 | . 10 8 17 8 11 Peak Tracking Total 5 | . 3 5 4 3 4 Tactical Retreats 3 | . . 1 1 . 1 Traps | -11 -10 -9 -9 -8 -7 ------- Run | Yrd Mat Mat Min Mat Fac Traps Triggered 3 | . 1 . 1 . 1 Indirectly . | . . . . . . Trap Hack Attempts . | . . . . . . Triggered . | . . . . . . Disarmed . | . . . . . . Reprogrammed . | . . . . . . Reused . | . . . . . . Traps Extracted . | . . . . . . Installed . | . . . . . . Triggered . | . . . . . . Machines | -11 -10 -9 -9 -8 -7 ---------- Run | Yrd Mat Mat Min Mat Fac Machines Disabled 33 | . . . 1 7 25 Max in Single Turn 14 | . . . 1 3 14 Machines Repaired . | . . . . . . Machines Dismantled . | . . . . . . Machines Sabotaged . | . . . . . . Overloaded Fab Kills . | . . . . . . Hacking | -11 -10 -9 -9 -8 -7 --------- Run | Yrd Mat Mat Min Mat Fac Machines Accessed . | . . . . . . Terminals . | . . . . . . Fabricators . | . . . . . . Repair Stations . | . . . . . . Recycling Units . | . . . . . . Scanalyzers . | . . . . . . Garrison Access . | . . . . . . Total Hacks . | . . . . . . Successful . | . . . . . . Failed . | . . . . . . Catastrophic . | . . . . . . Database Lockouts . | . . . . . . Manual . | . . . . . . Terminals . | . . . . . . Fabricators . | . . . . . . Repair Stations . | . . . . . . Recycling Units . | . . . . . . Scanalyzers . | . . . . . . Garrison Access . | . . . . . . Terminal Hacks . | . . . . . . Fabricator Hacks . | . . . . . . Repair Station Hacks . | . . . . . . Recycling Unit Hacks . | . . . . . . Scanalyzer . | . . . . . . Garrison Access Hacks . | . . . . . . Unauthorized Hacks . | . . . . . . Terminals . | . . . . . . Fabricators . | . . . . . . Repair Stations . | . . . . . . Recycling Units . | . . . . . . Scanalyzers . | . . . . . . Garrison Access . | . . . . . . Data Cores Recovered . | . . . . . . Used . | . . . . . . Hacking Detections . | . . . . . . Full Trace Events . | . . . . . . Feedback Events . | . . . . . . Feedback Blocked . | . . . . . . Robot Schematics Acquired . | . . . . . . Robots Built . | . . . . . . Authchips . | . . . . . . Time . | . . . . . . Total Robot Build Rating . | . . . . . . Part Schematics Acquired . | . . . . . . Parts Built . | . . . . . . Authchips . | . . . . . . Time . | . . . . . . Total Part Build Rating . | . . . . . . Part Studies Acquired . | . . . . . . Parts Repaired . | . . . . . . Time . | . . . . . . Parts Recycled . | . . . . . . Recycled Matter . | . . . . . . Retrieved Matter . | . . . . . . Retrieved Components . | . . . . . . Parts Scanalyzed . | . . . . . . Part Schematics Acquired . | . . . . . . Parts Damaged . | . . . . . . Bothacking | -11 -10 -9 -9 -8 -7 ------------ Run | Yrd Mat Mat Min Mat Fac Used RIF Installer . | . . . . . . Robots Hacked . | . . . . . . Non-combat . | . . . . . . Combat . | . . . . . . Robot Hacks Applied . | . . . . . . Relay Couplers Released . | . . . . . . Fabnet Peak Effective % . | . . . . . . Robots Rewired . | . . . . . . Allies Hacked . | . . . . . . Hacks Repelled . | . . . . . . Allies | -11 -10 -9 -9 -8 -7 -------- Run | Yrd Mat Mat Min Mat Fac Total Allies . | . . . . . . Largest Group . | . . . . . . Highest-Rated Group . | . . . . . . Highest-Rated Ally . | . . . . . . Total Orders . | . . . . . . Ally Attacks . | . . . . . . Total Damage . | . . . . . . Kills . | . . . . . . Allies Corrupted . | . . . . . . Allies Melted . | . . . . . . Intel | -11 -10 -9 -9 -8 -7 ------- Run | Yrd Mat Mat Min Mat Fac Active Infowar (turns) . | . . . . . . Robot Analysis Total . | . . . . . . Derelict Logs Recovered 1 | . . . 1 . . Drone Launches . | . . . . . . Drone Recoveries . | . . . . . . Exploration | -11 -10 -9 -9 -8 -7 ------------- Run | Yrd Mat Mat Min Mat Fac Turns Passed 3688 | 74 1061 357 403 578 1215 Spaces Moved 1304 | 41 226 204 194 250 389 Core 441 | 13 . . 74 24 330 Treads 537 | 28 226 204 79 . . Legs 52 | . . . 41 11 . Wheels . | . . . . . . Hover 43 | . . . . . 43 Flight 231 | . . . . 215 16 Fastest Speed 26 | 50 160 160 50 26 50 Average Speed 163 | 125 160 160 157 111 209 Slowest Speed 800 | 160 160 160 350 186 800 Overloaded Moves . | . . . . . . Propulsion Burnouts . | . . . . . . Robots Hopped . | . . . . . . Potential Cave-ins . | . . . . . . Cave-ins Triggered 1 | . . 1 . . . Exploration Rate (%) 27 | 5 45 21 59 23 11 Regions Visited 5 Branch Regions 1 Pre-discovered Areas 1 | . . . 1 . . Known Exits Taken . | . . . . . . Unknown Exits Taken 5 | 1 1 1 1 1 . Scrap Searched . | . . . . . . Spaces Dug . | . . . . . . Terrain Destroyed 652 | . 18 67 161 177 229 Melee . | . . . . . . Projectile 4 | . . . 1 1 2 AOE 648 | . 18 67 160 176 227 Terrain Rammed . | . . . . . . Walls Destroyed . | . . . . . . Machines Disabled . | . . . . . . Actions | -11 -10 -9 -9 -8 -7 --------- Run | Yrd Mat Mat Min Mat Fac Total 2725 | 59 888 219 259 531 769 Wait 1205 | . 625 . 24 217 339 Move 1299 | 40 225 203 193 249 389 Hop . | . . . . . . Pick Up 56 | 8 8 5 5 28 2 Fast Attach 4 | 1 . . . . 3 Attach 43 | 3 7 1 11 15 6 Detach 1 | . . . 1 . . Swap 2 | . . 1 . 1 . Drop 19 | 1 2 1 3 8 4 Fire 80 | 6 21 8 21 13 11 Melee . | . . . . . . Ram . | . . . . . . Kick . | . . . . . . Crush 1 | . . . 1 . . Escape Stasis 15 | . . . . . 15 Rewire . | . . . . . . Trap . | . . . . . . Miscellaneous . | . . . . . . Route ------- -11/Scrapyard -10/Materials (discovered 2 exits: [*Mat] / [*Min]) -9/Materials (discovered 2 exits: *Min / [*Sto]) -9/Mines -8/Materials -7/Factory History --------- Turn | Location | Event 25 | -11/Scrapyard | Discovered new exit (range 15) 75 | -11/Scrapyard | Entered Materials 304 | -10/Materials | Build established: Mutant 1060 | -10/Materials | Discovered new exit (range 5) 1099 | -10/Materials | Discovered new exit (range 3) 1136 | -10/Materials | Entered another Materials area 1136 | -9/Materials | Evolved 2 slots: Propulsion x2 1412 | -9/Materials | Crushed by falling debris 1412 | -9/Materials | Discovered new exit (range 12) 1469 | -9/Materials | Discovered new exit (range 16) 1493 | -9/Materials | Entered Mines 1565 | -9/Mines | Learned location of Zion (-7) 1568 | -9/Mines | Lost 3 parts (2n1w) 1668 | -9/Mines | Assembled infested the area 1702 | -9/Mines | Met a Derelict who couldn't figure out how to use a Trap Extractor 1868 | -9/Mines | Lost 4 parts (1p1u2w) 1890 | -9/Mines | Discovered new exit (range 11) 1895 | -9/Mines | A Derelict revealed a hidden shortcut to a safe place 1896 | -9/Mines | Entered Materials 1896 | -8/Materials | Evolved 2 slots: Utility x1, Weapon x1 2066 | -8/Materials | Garrison activated, responded to threat 2257 | -8/Materials | Lost 3 parts (1p1u1w) 2389 | -8/Materials | Discovered new exit (range 16) 2474 | -8/Materials | Entered Factory 2474 | -7/Factory | Evolved 2 slots: Utility x2 2538 | -7/Factory | Build established: Bomber 2869 | -7/Factory | Lost 6 parts (3n2u1w) 3521 | -7/Factory | Lost 4 parts (1p2u1w) 3570 | -7/Factory | Core integrity fell below 50% 3602 | -7/Factory | System corruption reached 10% 3603 | -7/Factory | Lost 4 parts (2n2w) 3608 | -7/Factory | Core integrity fell below 20% 3689 | -7/Factory | Destroyed by Y-54 Guardian with Gatling Laser Last Messages --------------- 03533_ Hvy. Rocket Launcher destroyed. 03534_ Dropped Med. Storage Unit. 03534_ Dropped Imp. Medium Armor Plating. 03535_ Dropped Recalibrator. 03543_ Acquired Gravmag System. 03556_ System corrupted: Gravmag System rejected. 03561_ Gravmag System destroyed. 03605_ System corrupted: Matter fused (-10). 03633_ System corrupted: Substantial component data lost. 03647_ ALERT: Potential suspicious activity detected, Programmers report to Factory Zone 5F. 03667_ Chain reaction triggered in Lgt. Ion Engine. 03667_ K-01 Serf destroyed. 03673_ K-01 Serf cleans the Subcomponent Replicator. 03683_ &OS/JAO0R67GKFEWM>BCMHI#S